[Event "FIDE WCCC Girls-10 2024"]
[Site "Montesilvano"]
[Date "2024.11.20"]
[Round "6.13"]
[White "Yi, Ruiyu"]
[Black "Samhita Pungavanam"]
[Result "1-0"]
[Annotator "NA RC"]
[ECO "D85"]
[WhiteElo "1571"]
[BlackElo "1752"]
[PlyCount "89"]
[EventDate "2024.11.18"]
[EventType "swiss"]
[EventCountry "ITA"]
[SourceTitle "playchess.com"]
[Source "ChessBase"]
[SourceQuality "1"]
[TimeControl "5400+30"]

1. d4 {[%emt 0:00:04]} Nf6 {[%emt 0:00:16]} 2. c4 {[%emt 0:00:04]} g6 {[%emt 0:00:50]} 3. Nc3 {[%emt 0:00:08]} d5 {[%emt 0:01:25]} 4. cxd5 {[%emt 0:00:06]} Nxd5 {[%emt 0:00:35]} 5. e4 {[%emt 0:00:10]} Nxc3 {[%emt 0:01:29]} 6. bxc3 {[%emt 0:00:08]} Bg7 {[%emt 0:00:58]} 7. Be3 {[%emt 0:00:47]} c5 {[%emt 0:04:41]} 8. Rc1 {[%emt 0:02:02]} cxd4 {[%emt 0:04:30]} 9. cxd4 {[%emt 0:02:59]} Nc6 {[%emt 0:04:01]} 10. Nf3 {[%emt 0:03:38]} Bg4 {[%emt 0:06:42]} 11. d5 {[%emt 0:01:32]} Ne5 12. Bb5+ {[%emt 0:01:21]} Nd7 {[%emt 0:10:59]} 13. O-O {[%emt 0:03:36]} O-O {[%emt 0:02:19]} 14. h3 {[%emt 0:03:25]} Bxf3 {[%emt 0:02:13]} 15. Qxf3 {[%emt 0:01:26]} a6 {[%emt 0:03:45]} 16. Ba4 {[%emt 0:01:56]} b5 {[%emt 0:02:38]} 17. Bb3 {[%emt 0:00:07]} a5 {[%emt 0:02:25]} 18. Qg3 {[%emt 0:04:29]} a4 {[%emt 0:04:05]} 19. Bd1 {[%emt 0:02:17]} b4 {[%emt 0:03:50]} 20. f4 {[%emt 0:04:09]} Qb8 {[%emt 0:05:41]} 21. e5 {[%emt 0:05:11]} Nb6 {[%emt 0:04:55]} 22. Bf3 {[%emt 0:03:48]} Ra5 {[%emt 0:03:31]} 23. Bc5 {[%emt 0:02:28]} b3 {[%emt 0:06:25]} 24. axb3 {[%emt 0:04:51]} axb3 25. Bxe7 {[%emt 0:06:16]} b2 {[%emt 0:04:22]} 26. Rb1 {[%emt 0:07:34]} Re8 {[%emt 0:06:01]} 27. Rxb2 {[%emt 0:11:29]} Rxe7 {[%emt 0:06:06]} 28. Rfb1 {[%emt 0:00:13]} Qa7 {[%emt 0:05:22]} 29. Rxb6 {[%emt 0:01:41]} Rb7 {[%emt 0:00:16]} 30. Qf2 {[%emt 0:01:43]} Ra2 {[%emt 0:00:29]} 31. Qc5 Bf8 {[%emt 0:02:37]} 32. d6 {[%emt 0:15:20]} Ra5 {[%emt 0:00:15]} 33. Qxa5 {[%emt 0:06:33]} Qxa5 {[%emt 0:00:08]} 34. Rxb7 {[%emt 0:00:06]} Qc5+ {[%emt 0:00:02]} 35. Kh2 {[%emt 0:00:12]} Qd4 {[%emt 0:00:10]} 36. R1b4 {[%emt 0:00:24]} Qd2 {[%emt 0:00:18]} 37. Rb8 {[%emt 0:00:34]} Kg7 {[%emt 0:00:09]} 38. Rc4 {[%emt 0:00:33]} Qd3 {[%emt 0:00:09]} 39. Rbc8 {[%emt 0:01:01]} h6 {[%emt 0:00:39]} 40. R8c7 {[%emt 0:01:51]} g5 {[%emt 0:00:05]} 41. e6 {[%emt 0:01:21]} gxf4 {[%emt 0:00:21]} 42. e7 {[%emt 0:00:41]} Qe3 {[%emt 0:00:38]} 43. exf8=Q+ {[%emt 0:00:16]} Kxf8 {[%emt 0:00:03]} 44. d7 {[%emt 0:00:15]} Qd2 {[%emt 0:00:15]} 45. Rc8+ {[%emt 0:04:15]} 1-0

[Event "FIDE WCCC Girls-10 2024"]
[Site "Montesilvano"]
[Date "2024.11.20"]
[Round "6.14"]
[White "Bhavanya Panchumarthi"]
[Black "Wang, Mi Ya Mia"]
[Result "1-0"]
[Annotator "NA RC"]
[ECO "A47"]
[WhiteElo "1703"]
[BlackElo "1552"]
[PlyCount "47"]
[EventDate "2024.11.18"]
[EventType "swiss"]
[EventCountry "ITA"]
[SourceTitle "playchess.com"]
[Source "ChessBase"]
[SourceQuality "1"]
[TimeControl "5400+30"]

1. d4 {[%emt 0:00:04]} d5 {[%emt 0:00:10]} 2. Bf4 {[%emt 0:00:20]} Nf6 {[%emt 0:01:04]} 3. e3 {[%emt 0:00:24]} e6 {[%emt 0:00:33]} 4. Nf3 {[%emt 0:00:13]} Be7 {[%emt 0:01:02]} 5. Bd3 {[%emt 0:01:18]} b6 {[%emt 0:01:11]} 6. O-O {[%emt 0:00:31]} O-O {[%emt 0:00:28]} 7. Ne5 {[%emt 0:01:39]} Bb7 {[%emt 0:01:49]} 8. Nd2 {[%emt 0:00:40]} Nbd7 {[%emt 0:01:29]} 9. Qf3 {[%emt 0:02:42]} c5 {[%emt 0:05:10]} 10. c3 {[%emt 0:02:19]} Re8 {[%emt 0:04:29]} 11. Qh3 {[%emt 0:06:11]} a6 {[%emt 0:06:17]} 12. Ndf3 {[%emt 0:03:56]} Ne4 {[%emt 0:07:09]} 13. Nxd7 {[%emt 0:17:07]} Qxd7 {[%emt 0:00:32]} 14. Ne5 {[%emt 0:00:41]} Qd8 {[%emt 0:03:30]} 15. f3 {[%emt 0:06:04]} Nf6 {[%emt 0:01:07]} 16. Ng4 {[%emt 0:08:22]} g6 {[%emt 0:09:06]} 17. Nh6+ {[%emt 0:05:05]} Kg7 {[%emt 0:03:03]} 18. g4 {[%emt 0:01:59]} Nd7 {[%emt 0:07:14]} 19. Nxf7 {[%emt 0:03:58]} Qc8 {[%emt 0:06:58]} 20. Qh6+ {[%emt 0:05:17]} Kg8 {[%emt 0:01:29]} 21. Bxg6 {[%emt 0:05:31]} Nf6 {[%emt 0:03:33]} 22. Bxh7+ {[%emt 0:03:40]} Kxf7 {[%emt 0:01:48]} 23. Qg6+ {[%emt 0:00:37]} Kf8 {[%emt 0:00:44]} 24. Bh6# {[%emt 0:00:09]} 1-0

[Event "FIDE WCCC Girls-10 2024"]
[Site "Montesilvano"]
[Date "2024.11.20"]
[Round "6.15"]
[White "Rekhviashvili, Mariam"]
[Black "Constantin-Ciuntu, Anne-Sophie"]
[Result "1/2-1/2"]
[Annotator "NA RC"]
[ECO "B22"]
[WhiteElo "1610"]
[BlackElo "1672"]
[PlyCount "161"]
[EventDate "2024.11.18"]
[EventType "swiss"]
[EventCountry "ITA"]
[SourceTitle "playchess.com"]
[Source "ChessBase"]
[SourceQuality "1"]
[TimeControl "5400+30"]

1. e4 {[%emt 0:02:59]} c5 {[%emt 0:00:02]} 2. c3 {[%emt 0:00:07]} d5 {[%emt 0:00:07]} 3. exd5 {[%emt 0:00:02]} Qxd5 {[%emt 0:00:10]} 4. d4 {[%emt 0:00:02]} Nf6 {[%emt 0:00:12]} 5. Nf3 {[%emt 0:00:05]} Bg4 {[%emt 0:00:15]} 6. Be2 {[%emt 0:00:04]} e6 {[%emt 0:00:16]} 7. h3 {[%emt 0:00:46]} Bh5 {[%emt 0:00:28]} 8. O-O {[%emt 0:00:43]} Be7 {[%emt 0:02:26]} 9. Be3 {[%emt 0:01:03]} cxd4 {[%emt 0:01:31]} 10. cxd4 {[%emt 0:00:16]} O-O {[%emt 0:01:22]} 11. Nc3 {[%emt 0:00:33]} Qa5 {[%emt 0:02:20]} 12. a3 {[%emt 0:00:42]} Nc6 {[%emt 0:02:10]} 13. b4 {[%emt 0:06:19]} Qd8 {[%emt 0:04:36]} 14. Rc1 {[%emt 0:05:54]} Rc8 {[%emt 0:04:56]} 15. Ne5 {[%emt 0:04:16]} Bxe2 {[%emt 0:08:38]} 16. Nxe2 {[%emt 0:05:10]} Nd5 {[%emt 0:07:02]} 17. Nxc6 {[%emt 0:01:01]} Rxc6 {[%emt 0:00:59]} 18. Rxc6 {[%emt 0:00:55]} bxc6 {[%emt 0:00:02]} 19. Qc2 {[%emt 0:03:24]} Qb6 {[%emt 0:01:15]} 20. Nc3 {[%emt 0:03:03]} Qa6 {[%emt 0:04:36]} 21. Qb2 {[%emt 0:06:37]} Rc8 {[%emt 0:07:27]} 22. Rc1 {[%emt 0:04:54]} h6 {[%emt 0:13:11]} 23. Rc2 {[%emt 0:21:53]} Nb6 {[%emt 0:11:35]} 24. Qc1 {[%emt 0:07:16]} Nc4 {[%emt 0:05:43]} 25. Nb1 {[%emt 0:00:38]} Nd6 {[%emt 0:06:48]} 26. Nd2 {[%emt 0:01:37]} Nb5 {[%emt 0:02:03]} 27. Nc4 {[%emt 0:23:41]} Bf6 {[%emt 0:02:23]} 28. Na5 {[%emt 0:00:00]} Bxd4 {[%emt 0:01:19]} 29. Rxc6 {[%emt 0:00:00]} Rxc6 {[%emt 0:02:56]} 30. Qxc6 {[%emt 0:00:00]} Qxc6 {[%emt 0:01:52]} 31. Nxc6 {[%emt 0:00:00]} Bxe3 {[%emt 0:00:33]} 32. fxe3 {[%emt 0:00:00]} Nxa3 {[%emt 0:00:56]} 33. Nxa7 {[%emt 0:00:00]} Kf8 {[%emt 0:00:16]} 34. Kf2 {[%emt 0:00:00]} Ke8 {[%emt 0:00:25]} 35. Nc6 {[%emt 0:00:00]} f6 {[%emt 0:00:45]} 36. Nd4 {[%emt 0:00:00]} Kd7 {[%emt 0:00:47]} 37. Ke2 {[%emt 0:00:00]} g6 {[%emt 0:00:23]} 38. Kd3 {[%emt 0:00:00]} e5 {[%emt 0:00:38]} 39. Nf3 {[%emt 0:00:00]} Ke6 {[%emt 0:00:47]} 40. Nd2 {[%emt 0:00:00]} Kd5 {[%emt 0:00:57]} 41. Ne4 {[%emt 0:00:00]} f5 {[%emt 0:01:04]} 42. Nc3+ {[%emt 0:00:00]} Kc6 {[%emt 0:00:16]} 43. g3 {[%emt 0:00:00]} Nb5 {[%emt 0:00:27]} 44. Na4 {[%emt 0:00:00]} Nd6 {[%emt 0:00:40]} 45. Nc3 {[%emt 0:00:00]} e4+ {[%emt 0:00:31]} 46. Ke2 {[%emt 0:00:49]} Nb5 {[%emt 0:00:31]} 47. Na4 {[%emt 0:00:33]} Nc7 {[%emt 0:00:39]} 48. g4 {[%emt 0:02:12]} Kb5 {[%emt 0:00:23]} 49. Nc5 {[%emt 0:00:08]} Kxb4 {[%emt 0:00:29]} 50. Nd7 {[%emt 0:00:10]} Nd5 {[%emt 0:01:00]} 51. Ne5 {[%emt 0:01:00]} Ne7 {[%emt 0:00:18]} 52. Nf7 {[%emt 0:02:24]} Ng8 {[%emt 0:01:07]} 53. Ne5 {[%emt 0:01:07]} fxg4 {[%emt 0:00:38]} 54. Nxg4 {[%emt 0:01:23]} Kc5 {[%emt 0:00:15]} 55. Ne5 {[%emt 0:00:16]} g5 {[%emt 0:00:37]} 56. Nf7 {[%emt 0:00:25]} Kd5 {[%emt 0:00:23]} 57. Kf2 {[%emt 0:00:37]} Ke6 {[%emt 0:00:24]} 58. Nd8+ {[%emt 0:00:05]} Kf5 {[%emt 0:00:26]} 59. Kg3 {[%emt 0:00:26]} h5 {[%emt 0:01:06]} 60. Nf7 {[%emt 0:00:17]} Nf6 {[%emt 0:00:53]} 61. Nd6+ {[%emt 0:00:20]} Ke6 {[%emt 0:00:19]} 62. Nc4 {[%emt 0:00:27]} Kd5 {[%emt 0:00:19]} 63. Nd2 {[%emt 0:00:15]} h4+ {[%emt 0:00:49]} 64. Kf2 {[%emt 0:00:14]} Kc5 {[%emt 0:00:13]} 65. Nb3+ {[%emt 0:00:32]} Kc4 {[%emt 0:00:21]} 66. Nc1 {[%emt 0:00:29]} Kc3 {[%emt 0:00:15]} 67. Na2+ {[%emt 0:00:39]} Kd2 {[%emt 0:00:23]} 68. Nb4 {[%emt 0:00:17]} g4 {[%emt 0:00:24]} 69. Kg2 {[%emt 0:01:06]} g3 {[%emt 0:00:33]} 70. Nc6 {[%emt 0:00:15]} Kxe3 {[%emt 0:00:12]} 71. Ne5 {[%emt 0:00:03]} Kd2 {[%emt 0:00:33]} 72. Ng6 {[%emt 0:00:06]} e3 {[%emt 0:01:25]} 73. Nxh4 {[%emt 0:00:25]} Nh5 {[%emt 0:00:12]} 74. Nf3+ {[%emt 0:00:05]} Kd3 {[%emt 0:00:49]} 75. Ne5+ {[%emt 0:02:36]} Kd2 {[%emt 0:01:08]} 76. Nc4+ {[%emt 0:00:34]} Ke2 {[%emt 0:00:40]} 77. Nb2 {[%emt 0:00:15]} Ke1 {[%emt 0:00:30]} 78. Kf3 {[%emt 0:03:34]} Kf1 {[%emt 0:01:04]} 79. Nc4 {[%emt 0:01:09]} e2 {[%emt 0:01:15]} 80. Nd2+ {[%emt 0:00:20]} Ke1 {[%emt 0:00:16]} 81. Ne4 {[%emt 0:00:06]} 1/2-1/2

[Event "FIDE WCCC Girls-10 2024"]
[Site "Montesilvano"]
[Date "2024.11.20"]
[Round "6.16"]
[White "Sun, Yucan(Sd)"]
[Black "Pham, Nhu Y"]
[Result "0-1"]
[Annotator "RC"]
[ECO "B11"]
[WhiteElo "1725"]
[BlackElo "1914"]
[PlyCount "86"]
[EventDate "2024.11.18"]
[EventType "swiss"]
[EventCountry "ITA"]
[SourceTitle "playchess.com"]
[Source "ChessBase"]
[SourceQuality "1"]
[TimeControl "5400+30"]

1. e4 {[%emt 0:00:02]} c6 {[%emt 0:00:22]} 2. Nc3 {[%emt 0:00:09]} d5 {[%emt 0:00:08]} 3. Nf3 {[%emt 0:00:22]} Bg4 {[%emt 0:00:14]} 4. h3 {[%emt 0:00:07]} Bxf3 {[%emt 0:00:44]} 5. Qxf3 {[%emt 0:00:08]} e6 {[%emt 0:01:14]} 6. d4 {[%emt 0:00:16]} Nf6 {[%emt 0:00:39]} 7. Be2 {[%emt 0:01:33]} Be7 {[%emt 0:04:04]} 8. e5 {[%emt 0:01:32]} Nfd7 {[%emt 0:00:37]} 9. Qg4 {[%emt 0:01:19]} g6 {[%emt 0:03:17]} 10. Bh6 {[%emt 0:05:12]} c5 {[%emt 0:05:47]} 11. Bb5 {[%emt 0:09:18]} a6 {[%emt 0:03:23]} 12. Bxd7+ {[%emt 0:01:30]} Nxd7 {[%emt 0:00:13]} 13. Nd1 {[%emt 0:10:22]} Rc8 {[%emt 0:07:56]} 14. c3 {[%emt 0:01:55]} cxd4 {[%emt 0:04:59]} 15. Qxd4 {[%emt 0:01:27]} Rc4 {[%emt 0:02:30]} 16. Qd2 {[%emt 0:01:21]} Re4+ {[%emt 0:02:02]} 17. Ne3 {[%emt 0:01:17]} Nxe5 {[%emt 0:01:04]} 18. O-O {[%emt 0:02:58]} Bg5 {[%emt 0:03:47]} 19. Bg7 {[%emt 0:04:55]} Nc4 {[%emt 0:02:36]} 20. Qd3 {[%emt 0:02:08]} Nxe3 {[%emt 0:04:10]} 21. Bxh8 {[%emt 0:00:32]} Nxf1 {[%emt 0:00:10]} 22. Rxf1 {[%emt 0:00:11]} f6 {[%emt 0:02:27]} 23. Rd1 {[%emt 0:01:44]} Qc8 {[%emt 0:04:15]} 24. f3 {[%emt 0:02:30]} Rc4 {[%emt 0:02:30]} 25. Re1 {[%emt 0:01:07]} Kf7 {[%emt 0:00:42]} 26. Qe2 {[%emt 0:00:49]} Rc6 {[%emt 0:01:36]} 27. Bxf6 {[%emt 0:00:55]} Bxf6 {[%emt 0:00:08]} 28. f4 {[%emt 0:00:12]} d4 {[%emt 0:01:07]} 29. cxd4 {[%emt 0:00:39]} Bxd4+ {[%emt 0:00:05]} 30. Kh1 {[%emt 0:00:04]} Rc2 {[%emt 0:00:48]} 31. Qe4 {[%emt 0:00:12]} Qc6 {[%emt 0:01:44]} 32. Qxc6 {[%emt 0:00:11]} bxc6 {[%emt 0:00:05]} 33. Rd1 {[%emt 0:00:30]} c5 {[%emt 0:00:28]} 34. b4 {[%emt 0:00:15]} Rxa2 {[%emt 0:00:20]} 35. bxc5 {[%emt 0:00:06]} Bxc5 {[%emt 0:00:05]} 36. Rd7+ {[%emt 0:00:06]} Be7 {[%emt 0:00:29]} 37. Ra7 {[%emt 0:00:15]} a5 {[%emt 0:00:34]} 38. Kh2 {[%emt 0:00:40]} a4 {[%emt 0:00:19]} 39. Kg3 {[%emt 0:00:10]} a3 {[%emt 0:00:10]} 40. Kf3 {[%emt 0:00:11]} Rb2 {[%emt 0:00:41]} 41. g3 {[%emt 0:00:33]} a2 {[%emt 0:00:36]} 42. h4 {[%emt 0:00:11]} Rb3+ {[%emt 0:00:06]} 43. Kg2 {[%emt 0:00:08]} Ra3 {[%emt 0:00:19]} 0-1

[Event "FIDE WCCC Girls-10 2024"]
[Site "Montesilvano"]
[Date "2024.11.20"]
[Round "6.17"]
[White "Mohamed Ahmed, Ghidaa"]
[Black "Isakhanyan, Nare"]
[Result "0-1"]
[Annotator "NA RC"]
[ECO "B17"]
[WhiteElo "1638"]
[BlackElo "1540"]
[PlyCount "75"]
[EventDate "2024.11.18"]
[EventType "swiss"]
[EventCountry "ITA"]
[SourceTitle "playchess.com"]
[Source "ChessBase"]
[SourceQuality "1"]
[TimeControl "5400+30"]

1. e4 {[%emt 0:00:02]} c6 {[%emt 0:00:05]} 2. d4 {[%emt 0:00:07]} d5 {[%emt 0:00:04]} 3. Nd2 {[%emt 0:00:08]} dxe4 {[%emt 0:00:06]} 4. Nxe4 {[%emt 0:00:11]} Nd7 {[%emt 0:00:04]} 5. Nf3 {[%emt 0:00:30]} Ngf6 {[%emt 0:00:08]} 6. Nxf6+ {[%emt 0:00:37]} Nxf6 {[%emt 0:00:05]} 7. h3 {[%emt 0:00:54]} Bf5 {[%emt 0:00:23]} 8. Bd3 {[%emt 0:00:16]} Bxd3 {[%emt 0:00:09]} 9. Qxd3 {[%emt 0:00:08]} e6 {[%emt 0:00:35]} 10. c3 {[%emt 0:01:30]} Be7 {[%emt 0:01:03]} 11. O-O {[%emt 0:00:19]} O-O {[%emt 0:00:50]} 12. Be3 {[%emt 0:08:10]} Nd5 {[%emt 0:05:34]} 13. Rad1 {[%emt 0:01:24]} Qb6 {[%emt 0:03:15]} 14. Rd2 {[%emt 0:07:20]} h6 {[%emt 0:04:41]} 15. Re1 {[%emt 0:04:30]} Rfd8 {[%emt 0:02:25]} 16. Qc2 {[%emt 0:05:30]} Rac8 {[%emt 0:02:28]} 17. Qd1 {[%emt 1:07:24]} c5 {[%emt 0:09:15]} 18. a4 {[%emt 0:00:00]} Nxe3 {[%emt 0:09:20]} 19. Rxe3 {[%emt 0:00:00]} cxd4 {[%emt 0:00:52]} 20. cxd4 {[%emt 0:00:00]} Bf6 {[%emt 0:01:16]} 21. Rc3 {[%emt 0:00:00]} Rxc3 {[%emt 0:01:52]} 22. bxc3 {[%emt 0:00:00]} Rc8 {[%emt 0:00:28]} 23. Qa1 {[%emt 0:00:00]} Qa5 {[%emt 0:02:23]} 24. Rd3 {[%emt 0:00:00]} Rc4 {[%emt 0:08:33]} 25. Qb2 {[%emt 0:00:00]} Qc7 {[%emt 0:01:21]} 26. Qb3 {[%emt 0:00:00]} Qc6 {[%emt 0:01:42]} 27. Qb5 {[%emt 0:00:00]} Rxa4 {[%emt 0:02:46]} 28. Qb1 {[%emt 0:00:00]} Qa6 {[%emt 0:01:37]} 29. Rd1 {[%emt 0:00:00]} Qc6 {[%emt 0:02:25]} 30. Qb3 {[%emt 0:01:00]} Rc4 {[%emt 0:00:32]} 31. Rd3 {[%emt 0:01:17]} Qc7 {[%emt 0:03:16]} 32. Nd2 {[%emt 0:03:54]} Rc6 {[%emt 0:00:14]} 33. Ne4 {[%emt 0:00:30]} Be7 {[%emt 0:00:35]} 34. Rg3 {[%emt 0:00:49]} a5 {[%emt 0:03:21]} 35. Qa4 {[%emt 0:00:54]} Qb6 {[%emt 0:02:22]} 36. Qa2 {[%emt 0:00:23]} Qb5 {[%emt 0:02:16]} 37. Nd2 {[%emt 0:00:37]} Qe2 {[%emt 0:03:05]} 38. Qb1 {[%emt 0:01:06]} 0-1

[Event "FIDE WCCC Girls-10 2024"]
[Site "Montesilvano"]
[Date "2024.11.20"]
[Round "6.18"]
[White "Kravchuk, Daria"]
[Black "Bayramova, Aya"]
[Result "0-1"]
[Annotator "NA RC"]
[ECO "E09"]
[WhiteElo "1569"]
[BlackElo "1634"]
[PlyCount "102"]
[EventDate "2024.11.18"]
[EventType "swiss"]
[EventCountry "ITA"]
[SourceTitle "playchess.com"]
[Source "ChessBase"]
[SourceQuality "1"]
[TimeControl "5400+30"]

1. d4 {[%emt 0:00:06]} d5 {[%emt 0:00:10]} 2. c4 {[%emt 0:00:25]} e6 {[%emt 0:00:28]} 3. Nf3 {[%emt 0:00:32]} Nf6 {[%emt 0:00:33]} 4. g3 {[%emt 0:00:36]} c6 {[%emt 0:00:21]} 5. Qc2 {[%emt 0:01:35]} Nbd7 {[%emt 0:00:35]} 6. Bg2 {[%emt 0:00:57]} Be7 {[%emt 0:04:30]} 7. O-O {[%emt 0:01:00]} O-O {[%emt 0:00:08]} 8. Nbd2 {[%emt 0:00:20]} Re8 {[%emt 0:06:11]} 9. Rd1 {[%emt 0:02:35]} Bd6 {[%emt 0:03:03]} 10. e4 {[%emt 0:03:38]} dxe4 {[%emt 0:00:38]} 11. Nxe4 {[%emt 0:00:14]} Nxe4 {[%emt 0:00:10]} 12. Qxe4 {[%emt 0:00:29]} Nf6 {[%emt 0:00:31]} 13. Qc2 {[%emt 0:03:04]} Qe7 {[%emt 0:03:59]} 14. Bg5 {[%emt 0:07:22]} h6 {[%emt 0:02:04]} 15. Bd2 {[%emt 0:03:20]} c5 {[%emt 0:06:54]} 16. Bc3 {[%emt 0:05:22]} cxd4 {[%emt 0:03:55]} 17. Nxd4 {[%emt 0:02:39]} a6 {[%emt 0:00:38]} 18. Rd2 {[%emt 0:13:23]} e5 {[%emt 0:00:39]} 19. Nf5 {[%emt 0:03:16]} Bxf5 {[%emt 0:02:50]} 20. Qxf5 {[%emt 0:00:43]} Bb4 {[%emt 0:05:29]} 21. Rc1 {[%emt 0:09:25]} Rac8 {[%emt 0:01:43]} 22. Bxb4 {[%emt 0:11:59]} Qxb4 {[%emt 0:00:04]} 23. Qc2 {[%emt 0:01:15]} b5 {[%emt 0:02:00]} 24. c5 {[%emt 0:01:20]} Rxc5 {[%emt 0:00:47]} 25. Qxc5 {[%emt 0:01:16]} Qxd2 {[%emt 0:00:07]} 26. Qc3 {[%emt 0:02:07]} Rd8 {[%emt 0:01:07]} 27. Bb7 {[%emt 0:01:36]} Qd6 {[%emt 0:04:43]} 28. Qc6 {[%emt 0:06:45]} Qd4 {[%emt 0:16:20]} 29. Bxa6 {[%emt 0:06:25]} Qxb2 {[%emt 0:00:18]} 30. Rc2 {[%emt 0:04:44]} Qb1+ {[%emt 0:05:08]} 31. Rc1 {[%emt 0:01:27]} Qb2 {[%emt 0:06:07]} 32. Rc2 {[%emt 0:01:17]} Qb1+ {[%emt 0:01:50]} 33. Rc1 {[%emt 0:00:21]} Qxa2 {[%emt 0:00:05]} 34. Bxb5 {[%emt 0:00:53]} e4 {[%emt 0:02:00]} 35. Rc2 {[%emt 0:02:42]} Qb1+ {[%emt 0:00:41]} 36. Kg2 {[%emt 0:01:02]} Qd1 {[%emt 0:01:03]} 37. Be2 {[%emt 0:00:17]} Qd4 {[%emt 0:00:17]} 38. Rc1 {[%emt 0:01:03]} Qe5 {[%emt 0:00:44]} 39. Qc7 {[%emt 0:00:58]} Qxc7 {[%emt 0:01:53]} 40. Rxc7 {[%emt 0:00:08]} Rd2 {[%emt 0:00:06]} 41. Kf1 {[%emt 0:01:15]} Nd5 {[%emt 0:00:32]} 42. Rc8+ {[%emt 0:00:35]} Kh7 {[%emt 0:00:06]} 43. Ke1 {[%emt 0:00:24]} Rb2 {[%emt 0:00:49]} 44. Rc5 {[%emt 0:00:55]} Nb4 {[%emt 0:01:19]} 45. Rb5 {[%emt 0:00:39]} Nc2+ {[%emt 0:00:15]} 46. Kd2 {[%emt 0:00:30]} Nb4+ {[%emt 0:01:26]} 47. Ke1 {[%emt 0:00:32]} Kg6 {[%emt 0:00:49]} 48. f3 {[%emt 0:00:30]} exf3 {[%emt 0:00:03]} 49. Bc4 {[%emt 0:00:29]} f5 {[%emt 0:02:19]} 50. Kf1 {[%emt 0:00:30]} Kg5 {[%emt 0:00:54]} 51. Be6 {[%emt 0:00:32]} Rb1+ {[%emt 0:16:39]} 0-1

[Event "FIDE WCCC Girls-10 2024"]
[Site "Montesilvano"]
[Date "2024.11.20"]
[Round "6.19"]
[White "Khusnitdinova, Husnorakhon"]
[Black "Poliak, Margarita"]
[Result "1-0"]
[Annotator "NA RC"]
[ECO "B99"]
[WhiteElo "1626"]
[BlackElo "1514"]
[PlyCount "129"]
[EventDate "2024.11.18"]
[EventType "swiss"]
[EventCountry "ITA"]
[SourceTitle "playchess.com"]
[Source "ChessBase"]
[SourceQuality "1"]
[TimeControl "5400+30"]

1. e4 {[%emt 0:00:02]} c5 {[%emt 0:00:07]} 2. Nf3 {[%emt 0:00:04]} d6 {[%emt 0:00:08]} 3. d4 {[%emt 0:00:06]} cxd4 {[%emt 0:00:07]} 4. Nxd4 {[%emt 0:00:05]} Nf6 {[%emt 0:00:12]} 5. Nc3 {[%emt 0:00:09]} a6 {[%emt 0:00:08]} 6. Bg5 {[%emt 0:00:11]} e6 {[%emt 0:00:11]} 7. f4 {[%emt 0:00:06]} Be7 {[%emt 0:00:08]} 8. Qf3 {[%emt 0:00:08]} Qc7 {[%emt 0:00:25]} 9. O-O-O {[%emt 0:00:17]} Nbd7 {[%emt 0:00:25]} 10. g4 {[%emt 0:00:23]} b5 {[%emt 0:00:33]} 11. Bd3 {[%emt 0:01:35]} Bb7 {[%emt 0:03:28]} 12. a3 {[%emt 0:09:44]} Rc8 {[%emt 0:06:20]} 13. Bxf6 {[%emt 0:08:32]} Nxf6 {[%emt 0:03:07]} 14. g5 {[%emt 0:00:31]} Nd7 {[%emt 0:00:13]} 15. Qh5 {[%emt 0:03:32]} Nc5 {[%emt 0:19:57]} 16. Rhe1 {[%emt 0:06:27]} d5 {[%emt 0:28:42]} 17. e5 {[%emt 0:09:37]} g6 {[%emt 0:01:29]} 18. Qf3 {[%emt 0:06:42]} Nxd3+ {[%emt 0:02:44]} 19. Rxd3 {[%emt 0:02:25]} b4 {[%emt 0:02:34]} 20. axb4 {[%emt 0:04:49]} Bxb4 {[%emt 0:00:11]} 21. Qe3 {[%emt 0:00:24]} Bc6 {[%emt 0:08:50]} 22. Re2 {[%emt 0:06:29]} Bc5 {[%emt 0:03:54]} 23. Kb1 {[%emt 0:02:11]} Qb6 {[%emt 0:01:06]} 24. Qd2 {[%emt 0:06:26]} Rb8 {[%emt 0:01:11]} 25. Nb3 {[%emt 0:01:04]} a5 {[%emt 0:01:59]} 26. Qc1 {[%emt 0:02:40]} Be7 {[%emt 0:01:27]} 27. Nd4 {[%emt 0:03:57]} Bd7 {[%emt 0:02:21]} 28. Red2 {[%emt 0:07:17]} a4 {[%emt 0:01:32]} 29. Nd1 {[%emt 0:01:37]} a3 {[%emt 0:05:00]} 30. Rb3 {[%emt 0:00:31]} Qa7 {[%emt 0:00:36]} 31. Rxb8+ {[%emt 0:00:42]} Qxb8 {[%emt 0:00:05]} 32. Rd3 {[%emt 0:00:36]} axb2 {[%emt 0:01:44]} 33. Qxb2 {[%emt 0:00:05]} Qa7 {[%emt 0:01:07]} 34. Rb3 {[%emt 0:00:04]} O-O {[%emt 0:01:01]} 35. Rb7 {[%emt 0:00:17]} Qa4 {[%emt 0:00:10]} 36. Ne2 {[%emt 0:07:07]} Ba3 {[%emt 0:02:12]} 37. Nec3 {[%emt 0:02:00]} Bxb2 {[%emt 0:01:18]} 38. Nxa4 {[%emt 0:00:05]} Bxa4 {[%emt 0:02:48]} 39. Nxb2 {[%emt 0:00:29]} Bc6 {[%emt 0:00:00]} 40. Rc7 {[%emt 0:00:51]} Bb5 {[%emt 0:00:00]} 41. Nd1 {[%emt 0:00:43]} Rb8 {[%emt 0:00:00]} 42. Kc1 {[%emt 0:00:33]} Be2 {[%emt 0:00:00]} 43. Nc3 {[%emt 0:01:15]} Bh5 {[%emt 0:00:00]} 44. Na2 {[%emt 0:01:07]} Ra8 {[%emt 0:00:00]} 45. Kb2 {[%emt 0:00:33]} Ra4 {[%emt 0:00:00]} 46. c4 {[%emt 0:00:41]} dxc4 {[%emt 0:00:00]} 47. Nc3 {[%emt 0:00:41]} Rb4+ {[%emt 0:00:00]} 48. Kc2 {[%emt 0:00:05]} Bg4 {[%emt 0:00:14]} 49. Ne4 {[%emt 0:00:10]} Bf5 {[%emt 0:00:18]} 50. Kc3 {[%emt 0:00:00]} Rb8 {[%emt 0:01:37]} 51. Nf6+ {[%emt 0:00:43]} Kg7 {[%emt 0:00:37]} 52. Kxc4 {[%emt 0:00:14]} Rb2 {[%emt 0:00:59]} 53. Ra7 {[%emt 0:00:55]} Rb8 {[%emt 0:00:57]} 54. Kc5 {[%emt 0:00:19]} Bh3 {[%emt 0:01:31]} 55. Kd6 {[%emt 0:00:36]} Bg2 {[%emt 0:00:29]} 56. Rc7 {[%emt 0:00:23]} Bf1 {[%emt 0:00:41]} 57. Ke7 {[%emt 0:00:24]} Bb5 {[%emt 0:00:32]} 58. Ra7 {[%emt 0:01:54]} Bc6 {[%emt 0:00:33]} 59. Kd6 {[%emt 0:00:23]} Bf3 {[%emt 0:00:23]} 60. h4 {[%emt 0:04:15]} Rb7 {[%emt 0:00:48]} 61. Rxb7 {[%emt 0:03:02]} Bxb7 {[%emt 0:00:05]} 62. Kd7 {[%emt 0:00:21]} Bf3 {[%emt 0:01:02]} 63. Ke7 {[%emt 0:00:49]} Bc6 {[%emt 0:00:22]} 64. Ng4 {[%emt 0:00:04]} Be4 {[%emt 0:01:14]} 65. Nh6 {[%emt 0:00:09]} 1-0